[Event "Elite Hotels Open 2023"]
[Site "Elite Stadshotellet, Kungsgatan 6, Vaxjo, Sweden"]
[Date "2023.02.10"]
[Round "3.10"]
[White "Poley, Vladimir"]
[Black "Nilsson, Oliver"]
[Result "1-0"]
[TimeControl "15 minutes + 5 seconds per move from move one (Round 1 - 4) / 90 minutes + 30 seconds per move from move one (Round 5 - 8)"]
[WhiteTitle "IM"]
[WhiteFideId "13500090"]
[BlackFideId "1730177"]
[WhiteElo "2325"]
[BlackElo "1925"]

1. Nf3 {[%clk 00:15:09]} d5 {[%clk 00:15:08]} {[%emt 00:00:03]} 2. g3 {[%clk
00:15:13]} {[%emt 00:00:01]} c6 {[%clk 00:14:54]} {[%emt 00:00:19]} 3. Bg2
{[%clk 00:15:16]} {[%emt 00:00:02]} Nf6 {[%clk 00:14:51]} {[%emt 00:00:07]} 4.
O-O {[%clk 00:15:18]} {[%emt 00:00:02]} h5 {[%clk 00:14:14]} {[%emt 00:00:43]}
5. d4 {[%clk 00:14:59]} {[%emt 00:00:24]} e6 {[%clk 00:13:54]} {[%emt
00:00:26]} 6. Nc3 {[%clk 00:13:43]} {[%emt 00:01:21]} Bd6 {[%clk 00:13:03]}
{[%emt 00:00:56]} 7. Bg5 {[%clk 00:13:15]} {[%emt 00:00:32]} Nbd7 {[%clk
00:13:03]} {[%emt 00:00:05]} 8. e4 {[%clk 00:13:12]} {[%emt 00:00:08]} dxe4
{[%clk 00:12:52]} {[%emt 00:00:17]} 9. Nxe4 {[%clk 00:13:15]} Be7 {[%clk
00:12:53]} {[%emt 00:00:04]} 10. Nxf6+ {[%clk 00:12:31]} {[%emt 00:00:49]} gxf6
{[%clk 00:12:02]} {[%emt 00:00:56]} 11. Bf4 {[%clk 00:12:19]} {[%emt 00:00:16]}
Nb6 {[%clk 00:11:57]} {[%emt 00:00:11]} 12. Re1 {[%clk 00:11:40]} {[%emt
00:00:45]} Nd5 {[%clk 00:11:36]} {[%emt 00:00:26]} 13. Bd2 {[%clk 00:11:33]}
{[%emt 00:00:10]} b6 {[%clk 00:06:30]} {[%emt 00:05:13]} 14. c4 {[%clk
00:11:32]} {[%emt 00:00:06]} Nc7 {[%clk 00:06:33]} 15. Bc3 {[%clk 00:09:16]}
{[%emt 00:02:20]} Bb7 {[%clk 00:05:52]} {[%emt 00:00:47]} 16. a4 {[%clk
00:07:41]} {[%emt 00:01:40]} a5 {[%clk 00:04:54]} {[%emt 00:01:03]} 17. Qe2
{[%clk 00:04:35]} {[%emt 00:03:11]} Na6 {[%clk 00:04:11]} {[%emt 00:00:48]} 18.
Rad1 {[%clk 00:04:38]} {[%emt 00:00:02]} Nb4 {[%clk 00:04:14]} {[%emt
00:00:03]} 19. Nh4 {[%clk 00:04:21]} {[%emt 00:00:22]} Qd7 {[%clk 00:03:13]}
{[%emt 00:01:05]} 20. Qf3 {[%clk 00:03:09]} {[%emt 00:01:16]} O-O-O {[%clk
00:02:41]} {[%emt 00:00:38]} 21. c5 {[%clk 00:02:42]} {[%emt 00:00:33]} bxc5
{[%clk 00:02:05]} {[%emt 00:00:41]} 22. dxc5 {[%clk 00:02:44]} {[%emt
00:00:03]} Qc7 {[%clk 00:01:46]} {[%emt 00:00:23]} 23. Bxf6 {[%clk 00:02:31]}
{[%emt 00:00:18]} Bxf6 {[%clk 00:00:50]} {[%emt 00:01:02]} 24. Qxf6 {[%clk
00:02:34]} {[%emt 00:00:01]} Nd3 {[%clk 00:00:46]} {[%emt 00:00:09]} 25. Rxd3
{[%clk 00:02:37]} {[%emt 00:00:03]} 1-0

[Event "Elite Hotels Open 2023"]
[Site "Elite Stadshotellet, Kungsgatan 6, Vaxjo, Sweden"]
[Date "2023.02.10"]
[Round "3.11"]
[White "Neretljak, Nedzad"]
[Black "Bellon Lopez, Juan Manuel"]
[Result "0-1"]
[TimeControl "15 minutes + 5 seconds per move from move one (Round 1 - 4) / 90 minutes + 30 seconds per move from move one (Round 5 - 8)"]
[WhiteTitle "CM"]
[BlackTitle "GM"]
[WhiteFideId "1713132"]
[BlackFideId "2200031"]
[WhiteElo "2051"]
[BlackElo "2303"]

1. e4 {[%clk 00:15:07]} {[%emt 00:00:02]} c5 {[%clk 00:15:09]} {[%emt
00:00:02]} 2. Nf3 {[%clk 00:15:08]} {[%emt 00:00:03]} e6 {[%clk 00:15:13]}
{[%emt 00:00:02]} 3. b4 {[%clk 00:14:46]} {[%emt 00:00:27]} b6 {[%clk
00:15:13]} {[%emt 00:00:04]} 4. Bb2 {[%clk 00:14:31]} {[%emt 00:00:19]} Bb7
{[%clk 00:15:08]} {[%emt 00:00:11]} 5. Qe2 {[%clk 00:13:34]} {[%emt 00:01:02]}
cxb4 {[%clk 00:14:15]} {[%emt 00:00:59]} 6. d4 {[%clk 00:13:35]} {[%emt
00:00:03]} Ba6 {[%clk 00:14:07]} {[%emt 00:00:14]} 7. Qe3 {[%clk 00:13:37]}
{[%emt 00:00:01]} Bxf1 {[%clk 00:14:11]} {[%emt 00:00:02]} 8. Kxf1 {[%clk
00:13:05]} {[%emt 00:00:37]} Qc7 {[%clk 00:14:08]} {[%emt 00:00:08]} 9. Qe2
{[%clk 00:12:27]} {[%emt 00:00:43]} Nf6 {[%clk 00:13:31]} {[%emt 00:00:42]} 10.
d5 {[%clk 00:11:07]} {[%emt 00:01:25]} Bc5 {[%clk 00:13:04]} {[%emt 00:00:31]}
11. Nbd2 {[%clk 00:10:33]} {[%emt 00:00:38]} O-O {[%clk 00:12:46]} {[%emt
00:00:25]} 12. g4 {[%clk 00:09:12]} {[%emt 00:01:25]} d6 {[%clk 00:11:04]}
{[%emt 00:01:47]} 13. Bxf6 {[%clk 00:05:58]} {[%emt 00:03:19]} gxf6 {[%clk
00:11:08]} 14. Rg1 {[%clk 00:05:27]} {[%emt 00:00:36]} Kh8 {[%clk 00:09:20]}
{[%emt 00:01:53]} 15. Rg3 {[%clk 00:05:27]} {[%emt 00:00:05]} Rg8 {[%clk
00:09:06]} {[%emt 00:00:19]} 16. Qd3 {[%clk 00:05:27]} {[%emt 00:00:05]} Nd7
{[%clk 00:09:00]} {[%emt 00:00:11]} 17. g5 {[%clk 00:04:21]} {[%emt 00:01:10]}
Ne5 {[%clk 00:08:03]} {[%emt 00:01:03]} 18. Nxe5 {[%clk 00:04:15]} {[%emt
00:00:11]} fxe5 {[%clk 00:08:03]} {[%emt 00:00:05]} 19. Qf3 {[%clk 00:04:11]}
{[%emt 00:00:09]} Qe7 {[%clk 00:07:45]} {[%emt 00:00:23]} 20. Qh5 {[%clk
00:04:13]} {[%emt 00:00:02]} Rg7 {[%clk 00:07:35]} {[%emt 00:00:16]} 21. Re1
{[%clk 00:04:15]} {[%emt 00:00:03]} Rag8 {[%clk 00:07:16]} {[%emt 00:00:24]} 22.
h4 {[%clk 00:03:51]} {[%emt 00:00:29]} f5 {[%clk 00:04:50]} {[%emt 00:02:32]}
23. Kg2 {[%clk 00:02:25]} {[%emt 00:01:30]} exd5 {[%clk 00:04:13]} {[%emt
00:00:42]} 24. exf5 {[%clk 00:02:24]} {[%emt 00:00:07]} Qd7 {[%clk 00:03:29]}
{[%emt 00:00:48]} 25. f6 {[%clk 00:02:20]} {[%emt 00:00:09]} Rf7 {[%clk
00:03:12]} {[%emt 00:00:23]} 26. Nf3 {[%clk 00:02:10]} {[%emt 00:00:14]} Rg6
{[%clk 00:02:32]} {[%emt 00:00:45]} 27. Nh2 {[%clk 00:02:07]} {[%emt 00:00:07]}
Qf5 {[%clk 00:02:23]} {[%emt 00:00:15]} 28. Re2 {[%clk 00:02:11]} e4 {[%clk
00:02:18]} {[%emt 00:00:10]} 29. Ng4 {[%clk 00:02:11]} {[%emt 00:00:05]} Rf8
{[%clk 00:01:44]} {[%emt 00:00:40]} 30. Nh6 {[%clk 00:02:01]} {[%emt 00:00:14]}
Qf4 {[%clk 00:01:42]} {[%emt 00:00:08]} 31. Qg4 {[%clk 00:01:46]} {[%emt
00:00:19]} Qxg4 32. Rxg4 {[%clk 00:01:49]} Bd4 {[%clk 00:01:31]} {[%emt
00:00:19]} 33. h5 {[%clk 00:01:47]} {[%emt 00:00:07]} Rxh6 {[%clk 00:01:31]}
{[%emt 00:00:06]} 34. gxh6 {[%clk 00:01:49]} {[%emt 00:00:03]} Rxf6 {[%clk
00:01:34]} {[%emt 00:00:02]} 35. Rg7 {[%clk 00:01:09]} {[%emt 00:00:44]} Rxh6
{[%clk 00:01:31]} {[%emt 00:00:08]} 36. Rxa7 {[%clk 00:01:10]} {[%emt
00:00:05]} Rxh5 {[%clk 00:01:30]} {[%emt 00:00:06]} 37. Kg3 {[%clk 00:01:04]}
{[%emt 00:00:11]} Rf5 {[%clk 00:01:19]} {[%emt 00:00:15]} 38. Rd2 {[%clk
00:01:05]} {[%emt 00:00:04]} Bc3 {[%clk 00:01:03]} {[%emt 00:00:21]} 39. Rd1
{[%clk 00:01:02]} {[%emt 00:00:08]} Be5+ {[%clk 00:01:01]} {[%emt 00:00:07]} 40.
Kg4 {[%clk 00:01:04]} {[%emt 00:00:03]} Rxf2 {[%clk 00:00:50]} {[%emt
00:00:16]} 41. Rh1 {[%clk 00:01:04]} {[%emt 00:00:04]} Bh2 {[%clk 00:00:46]}
{[%emt 00:00:09]} 42. Kg5 {[%clk 00:00:37]} {[%emt 00:00:33]} e3 {[%clk
00:00:39]} {[%emt 00:00:12]} 43. Re1 {[%clk 00:00:21]} {[%emt 00:00:22]} e2
{[%clk 00:00:40]} {[%emt 00:00:04]} 44. Rd7 {[%clk 00:00:14]} {[%emt 00:00:11]}
Kg8 {[%clk 00:00:37]} {[%emt 00:00:09]} 45. Rd8+ {[%clk 00:00:15]} {[%emt
00:00:04]} Kf7 {[%clk 00:00:41]} {[%emt 00:00:01]} 46. Rd7+ {[%clk 00:00:19]}
{[%emt 00:00:01]} Ke6 {[%clk 00:00:43]} {[%emt 00:00:02]} 47. Rxh7 {[%clk
00:00:22]} {[%emt 00:00:02]} Rg2+ {[%clk 00:00:35]} {[%emt 00:00:13]} 48. Kh4
{[%clk 00:00:13]} {[%emt 00:00:14]} Bg3+ {[%clk 00:00:38]} {[%emt 00:00:03]} 49.
Kh3 {[%clk 00:00:16]} {[%emt 00:00:02]} Bxe1 {[%clk 00:00:31]} {[%emt
00:00:11]} 50. Kxg2 {[%clk 00:00:19]} {[%emt 00:00:02]} Bc3 {[%clk 00:00:34]}
{[%emt 00:00:02]} 51. Rh6+ {[%clk 00:00:12]} {[%emt 00:00:12]} Ke5 {[%clk
00:00:37]} {[%emt 00:00:02]} 52. Rh5+ {[%clk 00:00:09]} {[%emt 00:00:09]} Kd4
{[%clk 00:00:41]} {[%emt 00:00:01]} 0-1

[Event "Elite Hotels Open 2023"]
[Site "Elite Stadshotellet, Kungsgatan 6, Vaxjo, Sweden"]
[Date "2023.02.10"]
[Round "3.12"]
[White "Odell Johansson, Leo"]
[Black "Ernst, Thomas"]
[Result "0-1"]
[TimeControl "15 minutes + 5 seconds per move from move one (Round 1 - 4) / 90 minutes + 30 seconds per move from move one (Round 5 - 8)"]
[BlackTitle "GM"]
[WhiteFideId "1722727"]
[BlackFideId "1700065"]
[WhiteElo "1876"]
[BlackElo "2286"]

1. d4 {[%clk 00:15:08]} {[%emt 00:00:02]} Nf6 {[%clk 00:15:08]} {[%emt
00:00:02]} 2. Nf3 {[%clk 00:15:10]} {[%emt 00:00:02]} g6 {[%clk 00:15:10]}
{[%emt 00:00:05]} 3. Nc3 {[%clk 00:15:13]} d5 {[%clk 00:15:11]} {[%emt
00:00:03]} 4. Bf4 {[%clk 00:15:12]} {[%emt 00:00:06]} Bg7 {[%clk 00:15:09]}
{[%emt 00:00:06]} 5. e3 {[%clk 00:15:14]} {[%emt 00:00:04]} c6 {[%clk
00:15:05]} {[%emt 00:00:09]} 6. Be2 {[%clk 00:15:14]} {[%emt 00:00:05]} Bg4
{[%clk 00:14:59]} {[%emt 00:00:12]} 7. h3 {[%clk 00:15:08]} {[%emt 00:00:10]}
Bxf3 {[%clk 00:15:01]} {[%emt 00:00:03]} 8. Bxf3 {[%clk 00:15:10]} {[%emt
00:00:02]} O-O {[%clk 00:14:53]} {[%emt 00:00:14]} 9. O-O {[%clk 00:15:12]}
{[%emt 00:00:03]} Nbd7 {[%clk 00:14:47]} {[%emt 00:00:11]} 10. e4 {[%clk
00:12:45]} {[%emt 00:02:32]} dxe4 {[%clk 00:13:38]} {[%emt 00:01:14]} 11. Nxe4
{[%clk 00:12:48]} {[%emt 00:00:02]} Nxe4 {[%clk 00:13:35]} {[%emt 00:00:08]} 12.
Bxe4 {[%clk 00:12:50]} {[%emt 00:00:03]} Qb6 {[%clk 00:13:22]} {[%emt
00:00:19]} 13. Be3 {[%clk 00:10:03]} {[%emt 00:02:51]} Nf6 {[%clk 00:12:57]}
{[%emt 00:00:30]} 14. Bf3 {[%clk 00:07:09]} {[%emt 00:02:59]} Nd5 {[%clk
00:12:58]} {[%emt 00:00:04]} 15. b3 {[%clk 00:02:43]} {[%emt 00:04:31]} e5
{[%clk 00:12:28]} {[%emt 00:00:36]} 16. Bxd5 {[%clk 00:01:54]} {[%emt
00:00:53]} exd4 {[%clk 00:12:14]} {[%emt 00:00:19]} 17. Bg5 {[%clk 00:01:18]}
{[%emt 00:00:40]} cxd5 {[%clk 00:12:13]} {[%emt 00:00:07]} 18. Qd3 {[%clk
00:00:36]} {[%emt 00:00:47]} Rac8 {[%clk 00:11:53]} {[%emt 00:00:25]} 19. Bd2
{[%clk 00:00:25]} {[%emt 00:00:16]} Qe6 {[%clk 00:11:16]} {[%emt 00:00:40]} 20.
Rfe1 {[%clk 00:00:11]} {[%emt 00:00:22]} Qf5 {[%clk 00:11:12]} {[%emt
00:00:09]} 21. Qxf5 {[%clk 00:00:11]} {[%emt 00:00:05]} gxf5 {[%clk 00:11:15]}
{[%emt 00:00:01]} 22. Rac1 {[%clk 00:00:12]} {[%emt 00:00:04]} Bf6 {[%clk
00:10:58]} {[%emt 00:00:22]} 23. Bb4 {[%clk 00:00:13]} {[%emt 00:00:04]} Rfe8
{[%clk 00:10:07]} {[%emt 00:00:56]} 24. Kf1 {[%clk 00:00:16]} {[%emt 00:00:03]}
Rxe1+ {[%clk 00:09:47]} {[%emt 00:00:25]} 25. Kxe1 {[%clk 00:00:16]} {[%emt
00:00:04]} d3 {[%clk 00:09:34]} {[%emt 00:00:19]} 26. Kd2 {[%clk 00:00:06]}
{[%emt 00:00:15]} Bg5+ {[%clk 00:09:14]} {[%emt 00:00:23]} 27. Kd1 {[%clk
00:00:10]} {[%emt 00:00:02]} Bxc1 {[%clk 00:09:16]} {[%emt 00:00:03]} 28. Kxc1
{[%clk 00:00:11]} {[%emt 00:00:04]} Rxc2+ {[%clk 00:09:16]} {[%emt 00:00:05]}
29. Kb1 {[%clk 00:00:14]} {[%emt 00:00:02]} Rxf2 {[%clk 00:09:13]} {[%emt
00:00:07]} 30. g3 {[%clk 00:00:17]} {[%emt 00:00:03]} Kg7 {[%clk 00:09:00]}
{[%emt 00:00:18]} 31. a4 {[%clk 00:00:21]} {[%emt 00:00:02]} d4 {[%clk
00:08:52]} {[%emt 00:00:11]} 32. Bc5 {[%clk 00:00:23]} {[%emt 00:00:04]} Rf1+
{[%clk 00:08:41]} {[%emt 00:00:16]} 33. Kb2 {[%clk 00:00:26]} {[%emt 00:00:02]}
d2 {[%clk 00:08:36]} {[%emt 00:00:11]} 0-1

[Event "Elite Hotels Open 2023"]
[Site "Elite Stadshotellet, Kungsgatan 6, Vaxjo, Sweden"]
[Date "2023.02.10"]
[Round "3.13"]
[White "Wagner, Stephan"]
[Black "Wiklund, Johan"]
[Result "1-0"]
[TimeControl "15 minutes + 5 seconds per move from move one (Round 1 - 4) / 90 minutes + 30 seconds per move from move one (Round 5 - 8)"]
[WhiteFideId "1613251"]
[BlackFideId "1713817"]
[WhiteElo "2264"]
[BlackElo "1899"]

1. c4 {[%clk 00:15:08]} {[%emt 00:00:02]} Nf6 {[%clk 00:15:07]} {[%emt
00:00:04]} 2. Nc3 {[%clk 00:15:10]} {[%emt 00:00:03]} c5 {[%clk 00:15:06]}
{[%emt 00:00:06]} 3. g3 {[%clk 00:15:09]} {[%emt 00:00:06]} d5 {[%clk
00:15:08]} {[%emt 00:00:03]} 4. cxd5 {[%clk 00:15:12]} {[%emt 00:00:02]} Nxd5
{[%clk 00:15:12]} {[%emt 00:00:02]} 5. Bg2 {[%clk 00:15:14]} {[%emt 00:00:02]}
Nc7 {[%clk 00:15:15]} {[%emt 00:00:02]} 6. Nf3 {[%clk 00:15:06]} {[%emt
00:00:12]} Nc6 {[%clk 00:15:14]} {[%emt 00:00:06]} 7. O-O {[%clk 00:14:57]}
{[%emt 00:00:14]} e5 {[%clk 00:14:38]} {[%emt 00:00:41]} 8. b3 {[%clk
00:14:46]} {[%emt 00:00:16]} Be7 {[%clk 00:14:38]} {[%emt 00:00:06]} 9. Bb2
{[%clk 00:14:49]} {[%emt 00:00:02]} f6 {[%clk 00:14:31]} {[%emt 00:00:12]} 10.
e3 {[%clk 00:13:49]} {[%emt 00:01:04]} Qd3 {[%clk 00:11:22]} {[%emt 00:03:13]}
11. Ne1 {[%clk 00:13:02]} {[%emt 00:00:53]} Qd7 {[%clk 00:11:08]} {[%emt
00:00:19]} 12. Qh5+ {[%clk 00:10:38]} {[%emt 00:02:30]} g6 {[%clk 00:10:58]}
{[%emt 00:00:15]} 13. Qh6 {[%clk 00:10:38]} {[%emt 00:00:05]} Bf8 {[%clk
00:09:14]} {[%emt 00:01:49]} 14. Qh4 {[%clk 00:10:26]} {[%emt 00:00:16]} Bg7
{[%clk 00:09:11]} {[%emt 00:00:09]} 15. Ne4 {[%clk 00:09:28]} {[%emt 00:01:02]}
Qe7 {[%clk 00:08:23]} {[%emt 00:00:53]} 16. Ba3 {[%clk 00:06:38]} {[%emt
00:02:56]} Ne6 {[%clk 00:07:32]} {[%emt 00:00:56]} 17. Nxc5 {[%clk 00:06:13]}
{[%emt 00:00:30]} Nxc5 {[%clk 00:05:57]} {[%emt 00:01:40]} 18. Rc1 {[%clk
00:05:53]} {[%emt 00:00:25]} Qd7 {[%clk 00:04:54]} {[%emt 00:01:09]} 19. Rxc5
{[%clk 00:05:29]} {[%emt 00:00:28]} Qxd2 {[%clk 00:04:34]} {[%emt 00:00:25]} 20.
Rxc6 {[%clk 00:04:27]} {[%emt 00:01:08]} bxc6 {[%clk 00:04:16]} {[%emt
00:00:22]} 21. Bxc6+ {[%clk 00:04:30]} {[%emt 00:00:02]} Kf7 {[%clk 00:03:35]}
{[%emt 00:00:46]} 22. Bxa8 {[%clk 00:04:04]} {[%emt 00:00:31]} Ba6 {[%clk
00:03:29]} {[%emt 00:00:11]} 23. Nf3 {[%clk 00:03:02]} {[%emt 00:01:07]} Qd8
{[%clk 00:02:20]} {[%emt 00:01:14]} 24. Bc6 {[%clk 00:01:29]} {[%emt 00:01:38]}
Bxf1 25. Kxf1 {[%clk 00:01:33]} Qd1+ {[%clk 00:01:32]} {[%emt 00:00:19]} 26.
Kg2 {[%clk 00:01:36]} {[%emt 00:00:02]} Rc8 {[%clk 00:01:34]} {[%emt 00:00:03]}
27. Qc4+ {[%clk 00:01:36]} {[%emt 00:00:05]} Ke8 {[%clk 00:15:05]} 1-0

[Event "Elite Hotels Open 2023"]
[Site "Elite Stadshotellet, Kungsgatan 6, Vaxjo, Sweden"]
[Date "2023.02.10"]
[Round "3.14"]
[White "Jepson, Christian"]
[Black "Johnsson, Marcus"]
[Result "1-0"]
[TimeControl "15 minutes + 5 seconds per move from move one (Round 1 - 4) / 90 minutes + 30 seconds per move from move one (Round 5 - 8)"]
[WhiteTitle "IM"]
[WhiteFideId "1701185"]
[BlackFideId "1733966"]
[WhiteElo "2395"]
[BlackElo "1871"]

1. d4 {[%clk 00:15:07]} {[%emt 00:00:02]} c5 {[%clk 00:15:08]} {[%emt
00:00:03]} 2. d5 {[%clk 00:14:55]} {[%emt 00:00:17]} e5 {[%clk 00:15:06]}
{[%emt 00:00:06]} 3. e4 {[%clk 00:14:35]} {[%emt 00:00:26]} d6 {[%clk
00:15:08]} {[%emt 00:00:03]} 4. c4 {[%clk 00:11:47]} {[%emt 00:02:52]} Nf6
{[%clk 00:15:03]} {[%emt 00:00:09]} 5. Nc3 {[%clk 00:11:50]} {[%emt 00:00:03]}
Be7 {[%clk 00:15:06]} {[%emt 00:00:03]} 6. g3 {[%clk 00:11:45]} {[%emt
00:00:09]} O-O {[%clk 00:15:07]} {[%emt 00:00:04]} 7. Bg2 {[%clk 00:11:47]}
{[%emt 00:00:03]} Ne8 {[%clk 00:14:56]} {[%emt 00:00:16]} 8. Nge2 {[%clk
00:11:46]} {[%emt 00:00:06]} g6 {[%clk 00:14:52]} {[%emt 00:00:09]} 9. Bh6
{[%clk 00:11:48]} {[%emt 00:00:04]} Ng7 {[%clk 00:14:55]} {[%emt 00:00:02]} 10.
Qd2 {[%clk 00:11:52]} {[%emt 00:00:02]} Nd7 {[%clk 00:14:51]} {[%emt 00:00:08]}
11. f4 {[%clk 00:10:37]} {[%emt 00:01:20]} exf4 {[%clk 00:11:33]} {[%emt
00:03:23]} 12. gxf4 {[%clk 00:10:02]} {[%emt 00:00:41]} Nf6 {[%clk 00:10:53]}
{[%emt 00:00:44]} 13. Bg5 {[%clk 00:09:13]} {[%emt 00:00:53]} a6 {[%clk
00:09:50]} {[%emt 00:01:09]} 14. O-O {[%clk 00:08:55]} {[%emt 00:00:23]} Nfe8
{[%clk 00:09:00]} {[%emt 00:00:55]} 15. Ng3 {[%clk 00:08:14]} {[%emt 00:00:46]}
Rb8 {[%clk 00:06:49]} {[%emt 00:02:15]} 16. a4 {[%clk 00:08:17]} {[%emt
00:00:02]} b6 {[%clk 00:06:45]} {[%emt 00:00:09]} 17. Rae1 {[%clk 00:08:05]}
{[%emt 00:00:17]} f6 {[%clk 00:05:35]} {[%emt 00:01:15]} 18. Bh6 {[%clk
00:08:05]} {[%emt 00:00:05]} Qc7 {[%clk 00:04:58]} {[%emt 00:00:43]} 19. f5
{[%clk 00:05:33]} {[%emt 00:02:37]} Bd7 {[%clk 00:04:34]} {[%emt 00:00:28]} 20.
Ra1 {[%clk 00:04:20]} {[%emt 00:01:18]} Rf7 {[%clk 00:04:02]} {[%emt 00:00:37]}
21. Qd3 {[%clk 00:04:08]} {[%emt 00:00:17]} Qc8 {[%clk 00:03:48]} {[%emt
00:00:19]} 22. Bh3 {[%clk 00:03:52]} {[%emt 00:00:22]} Rb7 {[%clk 00:02:50]}
{[%emt 00:01:03]} 23. Bg4 {[%clk 00:03:43]} {[%emt 00:00:14]} Kh8 {[%clk
00:02:29]} {[%emt 00:00:25]} 24. h4 {[%clk 00:03:26]} {[%emt 00:00:22]} Nc7
{[%clk 00:02:10]} {[%emt 00:00:24]} 25. Kh2 {[%clk 00:03:27]} {[%emt 00:00:05]}
Bf8 {[%clk 00:01:42]} {[%emt 00:00:33]} 26. Bf4 {[%clk 00:02:55]} {[%emt
00:00:36]} Qd8 {[%clk 00:01:11]} {[%emt 00:00:37]} 27. b3 {[%clk 00:01:48]}
{[%emt 00:01:12]} g5 {[%clk 00:00:45]} {[%emt 00:00:30]} 28. hxg5 {[%clk
00:01:43]} {[%emt 00:00:11]} fxg5 {[%clk 00:00:48]} {[%emt 00:00:01]} 29. Bd2
{[%clk 00:01:42]} {[%emt 00:00:08]} h5 {[%clk 00:00:44]} {[%emt 00:00:08]} 30.
Be2 {[%clk 00:01:34]} {[%emt 00:00:13]} g4 {[%clk 00:00:36]} {[%emt 00:00:13]}
31. f6 {[%clk 00:01:13]} {[%emt 00:00:25]} Nge8 {[%clk 00:00:29]} {[%emt
00:00:12]} 32. Bg5 {[%clk 00:01:13]} {[%emt 00:00:05]} h4 {[%clk 00:00:28]}
{[%emt 00:00:07]} 33. Nh5 {[%clk 00:01:07]} {[%emt 00:00:10]} Rh7 {[%clk
00:00:24]} {[%emt 00:00:10]} 34. Ng7 {[%clk 00:01:07]} {[%emt 00:00:05]} Qc8
{[%clk 00:00:17]} {[%emt 00:00:12]} 35. Nf5 {[%clk 00:01:05]} {[%emt 00:00:07]}
g3+ {[%clk 00:00:20]} {[%emt 00:00:03]} 36. Kg2 {[%clk 00:01:07]} {[%emt
00:00:02]} Bxf5 {[%clk 00:00:22]} {[%emt 00:00:03]} 37. Rxf5 {[%clk 00:01:11]}
{[%emt 00:00:01]} Bh6 {[%clk 00:00:16]} {[%emt 00:00:11]} 38. Bxh4 {[%clk
00:01:09]} {[%emt 00:00:07]} Qd7 {[%clk 00:00:10]} {[%emt 00:00:11]} 39. Raf1
{[%clk 00:01:02]} {[%emt 00:00:12]} Qf7 {[%clk 00:00:14]} {[%emt 00:00:02]} 40.
Bh5 {[%clk 00:01:05]} {[%emt 00:00:01]} 1-0